Cogmind - Beta 9.6 @@@ ROGUE MODE // 2020.05.30 @ 21:21:25 Player: 3.14 Result: Self-destructed Performance ------------- Evolutions (3) 1500 Regions Visited (6) 1200 Robots Destroyed (35) 175 Value Destroyed (829) 829 Prototype IDs (26) 520 Alien Tech Used (0) 0 Bonus (166) 166 TOTAL SCORE: 4390 Bonus ------- Follower Combat Kills 157 Aligned with FarCom 300 Friendly Fire -291 Cogmind --------- Core Integrity 664/700 Matter 240/300 Energy 290/290 System Corruption 0% Temperature Cool (96) Movement Treading (280) Ox6 Location -7/Factory Parts ------- > --- POWER (1) -------- Improved Deuterium Engine > --- PROPULSION (4) --- Light Treads Aluminum Leg Aluminum Leg > --- UTILITY (4) ------ High-capacity Storage Unit High-capacity Storage Unit High-capacity Storage Unit Medium Armor Plating > --- WEAPON (4) ------- Light Assault Rifle Light Assault Rifle Gauss Rifle Flak Gun > --- INVENTORY (28) --- Ion Engine Improved Heat Sink Large Matter Pod (49) Modified TNC Medium Armor Plating Medium Armor Plating Medium Armor Plating Insulated Plating Insulated Plating Insulated Plating Insulated Plating Insulated Plating Insulated Plating Heavy EM Pulse Gun Heavy EM Pulse Gun Heavy EM Pulse Gun Heavy EM Pulse Gun Light Assault Rifle Light Assault Rifle Shotgun Advanced EMP Blaster Advanced EMP Blaster Advanced EMP Blaster Rocket Launcher Katana Peak State ------------ > --- POWER ------------ Improved Deuterium Engine > --- PROPULSION ------- Light Treads Light Treads Aluminum Leg Aluminum Leg > --- UTILITY ---------- High-capacity Storage Unit High-capacity Storage Unit High-capacity Storage Unit Medium Armor Plating > --- WEAPON ----------- Light Assault Rifle Light Assault Rifle Gauss Rifle Flak Gun > --- INVENTORY -------- Ion Engine Ion Engine Improved Heat Sink Large Matter Pod Modified TNC Medium Armor Plating Medium Armor Plating Medium Armor Plating Insulated Plating Insulated Plating Insulated Plating Insulated Plating Insulated Plating Insulated Plating Heavy EM Pulse Gun Heavy EM Pulse Gun Heavy EM Pulse Gun Heavy EM Pulse Gun Light Assault Rifle Light Assault Rifle Shotgun Advanced EMP Blaster Advanced EMP Blaster Advanced EMP Blaster Rocket Launcher Katana [Rating: 29] Favorites ----------- Power Ion Engine Engine Ion Engine Propulsion Light Treads Treads Light Treads Leg Aluminum Leg Utility High-capacity Storage Unit Device Improved Heat Sink Storage High-capacity Storage Unit Protection Medium Armor Plating Weapon Light Assault Rifle Energy Gun Medium Laser Ballistic Gun Light Assault Rifle Launcher Rocket Launcher Slashing Weapon Mining Claw Build | -11 -10 -10 -10 -9 -8 -7 ------- Run | Scr Mat Min Exi Min Mat Fac Slots Evolved 6 | . . . . . 4 2 Power . | . . . . . . . Propulsion 2 | . . . . . . 2 Utility 2 | . . . . . 2 . Weapon 2 | . . . . . 2 . Parts Attached 50 | 7 11 . 2 . 25 5 Power 3 | 1 1 . . . . 1 Engine 3 | 1 1 . . . . 1 Core . | . . . . . . . Reactor . | . . . . . . . Propulsion 7 | 2 1 . . . 2 2 Treads 5 | 2 1 . . . . 2 Leg 2 | . . . . . 2 . Wheel . | . . . . . . . Hover . | . . . . . . . Flight . | . . . . . . . Utility 12 | 2 3 . 2 . 4 1 Device 3 | 1 1 . . . 1 . Storage 7 | 1 2 . 2 . 2 . Processor . | . . . . . . . Hackware . | . . . . . . . Protection 2 | . . . . . 1 1 Artifact . | . . . . . . . Weapon 28 | 2 6 . . . 19 1 Energy Gun 6 | 2 3 . . . 1 . Energy Cannon . | . . . . . . . Ballistic Gun 19 | . 2 . . . 16 1 Ballistic Cannon . | . . . . . . . Launcher 2 | . . . . . 2 . Special Weapon . | . . . . . . . Impact Weapon . | . . . . . . . Slashing Weapon 1 | . 1 . . . . . Piercing Weapon . | . . . . . . . Special Melee Weapon . | . . . . . . . Unidentified Prototypes 2 | . . . . . 2 . Parts Lost 10 | . 3 . . . 6 1 Power 1 | . 1 . . . . . Propulsion 3 | . 1 . . . 1 1 Utility . | . . . . . . . Weapon 6 | . 1 . . . 5 . Highest Loss Streak 6 | . 3 . . . 6 1 Average Slot Usage (%) 99 | . 99 100 100 100 97 99 Engine 12 | . 13 14 14 14 9 7 Treads 21 | . 27 28 28 28 7 14 Leg 3 | . . . . . 9 15 Device 3 | . 6 . . . 5 . Storage 24 | . 21 28 28 28 26 23 Protection 1 | . . . . . 3 7 Energy Gun 5 | . 15 . . . . . Ballistic Gun 23 | . 11 28 28 28 35 30 Naked Turns . | . . . . . . . Heaviest Build 123 | 14 73 71 71 71 111 123 Greatest Support 40 | 40 40 40 40 40 40 40 Greatest Overweight (x) 5 | . 3 1 1 1 5 3 Average Overweight (x) 1 | . . 1 1 1 3 2 Largest Inventory Capacity 28 | 6 20 20 20 20 28 28 Average Capacity 19 | 5 13 20 20 20 27 28 Most Carried 28 | 4 20 20 20 20 28 26 Average Carried 17 | 2 11 20 19 19 23 24 Final Capacity 28 | 6 20 20 20 20 28 28 Final Carried 26 | 4 20 20 20 20 26 25 Class Distribution -------------------- 51% | Hauler-Mutant 30% | Hauler-Skirmisher 17% | Mutant Dominant Class ---------------- Hauler-Mutant | -10/Materials Hauler-Mutant | -10/Mines Hauler-Mutant | -10/Exiles Hauler-Mutant | -9/Mines Hauler-Skirmisher | -8/Materials Hauler-Skirmisher | -7/Factory Resources | -11 -10 -10 -10 -9 -8 -7 ----------- Run | Scr Mat Min Exi Min Mat Fac Matter Collected 979 | 270 119 . . 42 475 73 Remotely 91 | 71 20 . . . . . Salvage Created 1257 | 77 385 . . 54 668 73 Parts 72 | 3 23 . . 2 40 4 Haulers Intercepted 2 | . 1 . . . 1 . Recyclers Shooed 1 | . 1 . . . . . Parts Field Recycled . | . . . . . . . Retrieved Matter . | . . . . . . . Parts Self-Destructed . | . . . . . . . Prevented . | . . . . . . . Kills | -11 -10 -10 -10 -9 -8 -7 ------- Run | Scr Mat Min Exi Min Mat Fac Combat Hostiles Destroyed 24 | . 12 . . 1 10 1 Melee 1 | . 1 . . . . . Guns 20 | . 11 . . 1 7 1 AOE 3 | . . . . . 3 . Classes Destroyed 10 | 1 4 . . 1 4 . Worker 2 | . 1 . . . 1 . Builder 2 | . . . . . 2 . Hauler 2 | . 1 . . . 1 . Recycler 2 | 1 . . . . 1 . Watcher 1 | . . . . . 1 . Swarmer 9 | . 6 . . . 3 . Grunt 13 | . 6 . . . 7 . Duelist 1 | . . . . 1 . . Sentry 2 | . . . . . 1 1 Hunter 1 | . . . . . 1 . Best Kill Streak 9 | 1 3 . . 1 9 1 Combat Bots Only 6 | . 3 . . 1 6 1 Max Kills in Single Turn 3 | 1 1 . . 1 3 1 Gunslinging . | . . . . . . . Exploded 2 | . . . . . 2 . Melee 1 | . 1 . . . . . Uniques/NPCs Destroyed . | . . . . . . . Combat | -11 -10 -10 -10 -9 -8 -7 -------- Run | Scr Mat Min Exi Min Mat Fac Damage Taken 2329 | . 567 . . 32 1046 684 Core 285 | . 95 . . . 154 36 Absorbed by Shields . | . . . . . . . Core Remaining (%) 78 | 100 . . . 62 72 . Volleys Fired 97 | 2 38 . . 11 38 8 Largest 4 | 2 2 . . 2 4 4 Hottest 112 | 100 112 . . 40 88 96 Shots Fired 261 | 4 75 . . 22 128 32 Gun 259 | 4 75 . . 22 126 32 Cannon . | . . . . . . . Launcher 2 | . . . . . 2 . Special . | . . . . . . . Kinetic 198 | . 24 . . 22 120 32 Thermal 55 | 4 51 . . . . . Explosive 2 | . . . . . 2 . Electromagnetic 6 | . . . . . 6 . Robot Hit Streak 10 | 3 9 . . 6 10 7 Robot Miss Streak 8 | . 5 . . 3 3 8 Penetration Max . | . . . . . . . Secondary Targets 5 | . 1 . . 1 3 . Max Gunslinging Chain 1 | . 1 . . 1 1 . Shots Hit Robots 163 | 3 46 . . 12 83 19 Core Hits 75 | 2 22 . . 2 38 11 Critical Hits 2 | . . . . . 2 . Critical Kills 1 | . . . . . 1 . Critical Parts Destroyed 1 | . . . . . 1 . Melee Attacks 18 | . 18 . . . . . Impact . | . . . . . . . Slashing 18 | . 18 . . . . . Piercing . | . . . . . . . Sneak Attacks 1 | . 1 . . . . . Combat Hostiles 1 | . 1 . . . . . Follow-up Attacks . | . . . . . . . Damage Inflicted 2012 | 38 701 . . 103 937 233 Guns 1754 | 38 589 . . 103 791 233 Cannons . | . . . . . . . Explosions 146 | . . . . . 146 . Melee 69 | . 69 . . . . . Ramming 43 | . 43 . . . . . Kinetic 1177 | . 133 . . 103 708 233 Thermal 494 | 38 456 . . . . . Explosive 146 | . . . . . 146 . Electromagnetic 83 | . . . . . 83 . Impact . | . . . . . . . Slashing 69 | . 69 . . . . . Piercing . | . . . . . . . Highest Corruption . | . . . . . . . Average Corruption . | . . . . . . . Corruption Purged . | . . . . . . . Overload Shots . | . . . . . . . Overflow Damage 3 | . 3 . . . . . Projectiles . | . . . . . . . Explosions . | . . . . . . . Melee 3 | . 3 . . . . . Knockbacks . | . . . . . . . Impact . | . . . . . . . Kinetic . | . . . . . . . Secondary . | . . . . . . . Self-Inflicted Damage 28 | . . . . . 28 . Shots 1 | . . . . . 1 . Rammed 3 | . 2 . . . 1 . Targets Rammed 4 | . 3 . . . 1 . Kicked . | . . . . . . . Crushed 1 | . 1 . . . . . Highest Temperature 322 | 78 322 . . 6 197 96 Average Temperature 75 | 40 83 . . 6 76 48 Received Heat Transfer 567 | . 99 . . 18 396 54 Siege Activations . | . . . . . . . Robots Corrupted . | . . . . . . . Combat Hostiles . | . . . . . . . Parts Fried 2 | . . . . . 2 . Impact Corruptions 1 | . 1 . . . . . Robots Melted . | . . . . . . . Combat Hostiles . | . . . . . . . Parts Melted 3 | 1 1 . . 1 . . Heat Transferred 1295 | 111 1184 . . . . . Parts Sabotaged . | . . . . . . . Parts Stolen . | . . . . . . . Parts Stripped . | . . . . . . . Power Chain Reactions . | . . . . . . . Missiles Intercepted . | . . . . . . . Alert | -11 -10 -10 -10 -9 -8 -7 ------- Run | Scr Mat Min Exi Min Mat Fac Peak Influence 345 | 5 173 34 . 116 345 71 Average Influence 82 | 3 59 34 . 41 167 35 Maximum Alert Level 1 | . . . . . 1 . Low Security (%) 92 | 100 100 100 . 100 72 100 Level 1 7 | . . . . . 27 . Level 2 . | . . . . . . . Level 3 . | . . . . . . . Level 4 . | . . . . . . . Level 5 . | . . . . . . . High Security . | . . . . . . . Max Security . | . . . . . . . Squads Dispatched 6 | . 5 . . . 1 . Investigation 5 | . 5 . . . . . Extermination . | . . . . . . . Reinforcement . | . . . . . . . Assault . | . . . . . . . Garrison 1 | . . . . . 1 . Intercept . | . . . . . . . Construction Impeded . | . . . . . . . Haulers Reinforced . | . . . . . . . Stealth | -11 -10 -10 -10 -9 -8 -7 --------- Run | Scr Mat Min Exi Min Mat Fac Distress Signals 7 | . 1 . . . 6 . Communications Jammed . | . . . . . . . Distress Signals . | . . . . . . . Times Spotted 52 | . 20 . . 4 23 5 Peak Tracking Total 7 | . 4 . . 2 7 4 Tactical Retreats . | . . . . . . . Traps | -11 -10 -10 -10 -9 -8 -7 ------- Run | Scr Mat Min Exi Min Mat Fac Traps Triggered 4 | . 3 . . . 1 . Indirectly . | . . . . . . . Trap Hack Attempts . | . . . . . . . Triggered . | . . . . . . . Disarmed . | . . . . . . . Reprogrammed . | . . . . . . . Reused . | . . . . . . . Traps Extracted . | . . . . . . . Installed . | . . . . . . . Triggered . | . . . . . . . Machines | -11 -10 -10 -10 -9 -8 -7 ---------- Run | Scr Mat Min Exi Min Mat Fac Machines Disabled 2 | . . . . . 2 . Max in Single Turn 1 | . . . . . 1 . Garrison Access 1 | . . . . . 1 . Machines Sabotaged . | . . . . . . . Garrisons Compromised . | . . . . . . . Overloaded Fab Kills . | . . . . . . . Fab Network Shutdowns . | . . . . . . . Hacking | -11 -10 -10 -10 -9 -8 -7 --------- Run | Scr Mat Min Exi Min Mat Fac Machines Accessed 12 | . 6 . 2 . 3 1 Terminals 9 | . 6 . . . 2 1 Fabricators . | . . . . . . . Repair Stations . | . . . . . . . Recycling Units . | . . . . . . . Scanalyzers . | . . . . . . . Garrison Access 1 | . . . . . 1 . Total Hacks 33 | . 21 . 2 . 6 4 Successful 16 | . 9 . 2 . 4 1 Failed 16 | . 11 . . . 2 3 Catastrophic 2 | . 1 . . . . 1 Database Lockouts 1 | . 1 . . . . . Manual 23 | . 19 . 1 . 3 . Terminals 29 | . 21 . . . 4 4 Fabricators . | . . . . . . . Repair Stations . | . . . . . . . Recycling Units . | . . . . . . . Scanalyzers . | . . . . . . . Garrison Access 2 | . . . . . 2 . Terminal Hacks 9 | . 4 . 2 . 2 1 Record 1 | . . . 1 . . . Robot Analysis 1 | . 1 . . . . . Prototype ID Bank 1 | . 1 . . . . . Terminal Index 3 | . 1 . . . 1 1 Unreport Threat 1 | . . . . . 1 . Recall Investigation 1 | . 1 . . . . . EX-Prototype ID Bank 1 | . . . 1 . . . Fabricator Hacks . | . . . . . . . Repair Station Hacks . | . . . . . . . Recycling Unit Hacks . | . . . . . . . Scanalyzer . | . . . . . . . Garrison Access Hacks 1 | . . . . . 1 . Seal Access 1 | . . . . . 1 . Unauthorized Hacks 6 | . 5 . . . 1 . Terminals 6 | . 5 . . . 1 . Track 1 | . 1 . . . . . Botnet 5 | . 4 . . . 1 . Fabricators . | . . . . . . . Repair Stations . | . . . . . . . Recycling Units . | . . . . . . . Scanalyzers . | . . . . . . . Garrison Access . | . . . . . . . Data Cores Recovered . | . . . . . . . Used . | . . . . . . . Hacking Detections 10 | . 6 . . . 3 1 Full Trace Events 1 | . 1 . . . . . Feedback Events . | . . . . . . . Feedback Blocked . | . . . . . . . Robot Schematics Acquired . | . . . . . . . Robots Built . | . . . . . . . Matter . | . . . . . . . Time . | . . . . . . . Total Robot Build Rating . | . . . . . . . Part Schematics Acquired . | . . . . . . . Parts Built . | . . . . . . . Matter . | . . . . . . . Time . | . . . . . . . Total Part Build Rating . | . . . . . . . Parts Repaired . | . . . . . . . Time . | . . . . . . . Parts Recycled . | . . . . . . . Recycled Matter . | . . . . . . . Retrieved Matter . | . . . . . . . Retrieved Components . | . . . . . . . Parts Scanalyzed . | . . . . . . . Part Schematics Acquired . | . . . . . . . Parts Damaged . | . . . . . . . Bothacking | -11 -10 -10 -10 -9 -8 -7 ------------ Run | Scr Mat Min Exi Min Mat Fac Used RIF Installer . | . . . . . . . Robots Hacked . | . . . . . . . Non-combat . | . . . . . . . Combat . | . . . . . . . Robot Hacks Applied . | . . . . . . . Relay Couplers Released . | . . . . . . . Robots Rewired . | . . . . . . . Allies Hacked . | . . . . . . . Hacks Repelled . | . . . . . . . Allies | -11 -10 -10 -10 -9 -8 -7 -------- Run | Scr Mat Min Exi Min Mat Fac Total Allies 3 | . . . . 3 . . Largest Group 3 | . . . . 3 3 . Highest-Rated Group 40 | . . . . 40 40 . Highest-Rated Ally 16 | . . . . 16 16 . Total Orders . | . . . . . . . Ally Attacks 62 | . . . . 24 38 . Total Damage 576 | . . . . 264 312 . Kills 5 | . . . . 3 2 . Allies Corrupted . | . . . . . . . Allies Melted . | . . . . . . . Intel | -11 -10 -10 -10 -9 -8 -7 ------- Run | Scr Mat Min Exi Min Mat Fac Robot Analysis Total 1 | . 1 . . . . . Derelict Logs Recovered . | . . . . . . . Drone Launches . | . . . . . . . Drone Recoveries . | . . . . . . . Exploration | -11 -10 -10 -10 -9 -8 -7 ------------- Run | Scr Mat Min Exi Min Mat Fac Turns Passed 3071 | 85 1082 63 623 273 688 257 Spaces Moved 1400 | 42 514 36 344 135 219 110 Core 1 | 1 . . . . . . Treads 1279 | 41 514 36 344 135 99 110 Legs 120 | . . . . . 120 . Wheels . | . . . . . . . Hover . | . . . . . . . Flight . | . . . . . . . Fastest Speed 50 | 50 160 180 180 180 180 200 Average Speed 187 | 157 171 180 180 180 238 203 Slowest Speed 270 | 160 220 180 180 180 270 220 Overloaded Moves . | . . . . . . . Propulsion Burnouts . | . . . . . . . Robots Hopped . | . . . . . . . Cave-ins Triggered . | . . . . . . . Exploration Rate (%) 30 | 6 62 13 66 41 22 4 Regions Visited 6 Branch Regions 3 Pre-discovered Areas 1 | . . . 1 . . . Known Exits Taken . | . . . . . . . Unknown Exits Taken 6 | 1 1 1 1 1 1 . Scrap Searched 1 | . . . . 1 . . Spaces Dug 19 | . 7 . . . 12 . Terrain Destroyed 21 | . 7 . . . 12 2 Melee 7 | . 7 . . . . . Projectile 2 | . . . . . . 2 AOE 12 | . . . . . 12 . Actions | -11 -10 -10 -10 -9 -8 -7 --------- Run | Scr Mat Min Exi Min Mat Fac Total 1643 | 54 608 35 350 149 322 125 Wait 9 | . 1 . 1 . 7 . Move 1394 | 41 513 35 343 134 218 110 Hop . | . . . . . . . Pick Up 49 | 4 19 . 1 2 22 1 Fast Attach 11 | 7 2 . . . 2 . Attach 19 | . 3 . . . 14 2 Detach . | . . . . . . . Swap 20 | . 6 . 2 . 9 3 Drop 22 | . 5 . 3 2 11 1 Fire 97 | 2 38 . . 11 38 8 Melee 18 | . 18 . . . . . Ram . | . . . . . . . Kick 1 | . . . . . 1 . Crush 3 | . 3 . . . . . Escape Stasis . | . . . . . . . Rewire . | . . . . . . . Trap . | . . . . . . . Miscellaneous . | . . . . . . . Route ------- -11/Scrapyard -10/Materials (discovered 2 exits: [*Mat] / [*Min]) -10/Mines (discovered 2 exits: [*Mat] / *Exi) -10/Exiles -9/Mines -8/Materials -7/Factory History --------- Turn | Location | Event 13 | -11/Scrapyard | Discovered new exit (range 13) 86 | -11/Scrapyard | Entered Materials 304 | -10/Materials | Discovered new exit (range 13) 315 | -10/Materials | Build established: Mutant 816 | -10/Materials | Central database locked down 876 | -10/Materials | Build established: Hauler-Mutant 1064 | -10/Materials | Lost 3 parts (1p1n1w) 1152 | -10/Materials | Discovered new exit (range 10) 1168 | -10/Materials | Entered Mines 1203 | -10/Mines | Discovered new exit (range 16) 1222 | -10/Mines | Deemed a non-threat by the Exiles lab entrance 1224 | -10/Mines | Discovered new exit (range 5) 1231 | -10/Mines | Entered Exiles 1276 | -10/Exiles | Met 8R-AWN 1307 | -10/Exiles | Met EX-HEX 1446 | -10/Exiles | Met EX-DEC 1453 | -10/Exiles | Learned location of Zion (-6) 1595 | -10/Exiles | Met EX-BIN 1617 | -10/Exiles | Aligned with FarCom system 1619 | -10/Exiles | Given EX-Vault access code 1660 | -10/Exiles | Opened EX-Vault 1677 | -10/Exiles | Found Modified TNC 1716 | -10/Exiles | Warned to stay clear of 0b10 Research branches 1838 | -10/Exiles | Discovered new exit (range 10) 1854 | -10/Exiles | Left Exiles lab with Modified TNC 1854 | -10/Exiles | Entered Mines 1860 | -9/Mines | Assisted by bots powering up and referring to "LRC-V3" 2018 | -9/Mines | Met a Derelict bent on vengeance 2101 | -9/Mines | Discovered new exit (range 14) 2127 | -9/Mines | Entered Materials 2127 | -8/Materials | Accompanied by 3 allies 2127 | -8/Materials | Evolved 4 slots: Utility x2, Weapon x2 2357 | -8/Materials | Garrison activated, responded to threat 2462 | -8/Materials | Lost 6 parts (1n5w) 2475 | -8/Materials | Build established: Hauler-Skirmisher 2788 | -8/Materials | Discovered new exit (range 10) 2815 | -8/Materials | Entered Factory 2815 | -7/Factory | Evolved 2 slots: Propulsion x2 3072 | -7/Factory | Self-destructed Last Messages --------------- LOCATION=UNKNOWN GOAL=ESCAPE 02815_ Receiving FarCom transmissions... 02849_ Acquired Flak Gun. 02877_ Connecting with Terminal... 02877_ Current location identified: Factory >>Index(Terminals) Found 20 terminals. Downloaded coordinate data. 02995_ Slug penetrates Y-54 Guardian. 03002_ Y-54 Guardian destroyed. 03002_ Slug penetrates Wall. 03009_ Acquired 73 matter. 03025_ Dropped Ion Engine. 03056_ Slug penetrates S-27 Virus. 03058_ R-06 Scavenger collects Imp. Light Armor Plating. 03059_ Slug penetrates Wall. 03061_ R-06 Scavenger collects Imp. Heat Sink. 03062_ Slug penetrates Recycling Unit. 03067_ Lgt. Treads destroyed. Map ----- +----------------------------------------------------+ | ???????????????????????????????????????????? | | ???????????????????????????????????????????? | | ???????????????????????????????????????????? | | ???????????????????????????????????????????? | | ???????????????????????????????????????????? | | ???????????????????????????????????????????? | | ???????????????????????????????????????????? | | ???????????????????????????????????????????? | | ???????????????????????????????????????????? | | ???????????????????????????????????????????? | | ???????????????????????????????????????????? | | ???????????????????????????????????????????? | | ???????????????????????????????????????????? | | ???????????????????????????????????????????? | | ????????????????????????#######????????????? | | ??????????????????????? ???????????? | | ??????????????????????? ???????????? | | ?????????????????????? ??????????? | | ?????????????????????? ??????????? | | ?????????????????##### ??????????? | | ?????????????????# ?????????? | | ?????????????????# s ?????????? | | ?????????????????#sss """?????????????? | | ?????????????????# """?????????????? | | ???????????#####?# """ """?????????????? | | ???????????# ! ### @"Y """?????????????? | | ???????????#! """ ????????????? | | ???????????# ### ?????????????? | | ???##########+#### ???o???????? | | ???# ! ######## ???????????? | | ???# * #??????? ###??????????? | | ???# """" """" ########? #????????????? | | ???# """" """" + +???????????? | | ???# """" """" ########???? ?????????????? | | ???# """" """" #??????????????????????????? | | ???# """" """" ###########????????????????? | | ???# """" """" # #????????????????? | | ???# # #????????????????? | | ???# # #????????????????? | | ???# # #????????????????? | | ???# # #????????????????? | | ???##+##+#+###### #????????????????? | | ????# + #????????????????? | | ????# # #????????????????? | | ????# """ ##+########????????????????? | | ######## """ #???????????????????????? | | # + """ #########???????????????? | | # # ??????????????? | | # """" # ??????????????? | | # """" # ?????????????? | +----------------------------------------------------+ Best States ------------- Heat Dissipation 45 Energy Generation 16 Energy Capacity 290 Matter Stores 300 Matter Capacity 300 Sight Range 16 Terrain Scan Density 10 Armor Coverage 225 Resistance: EM 15 Evasion (%) 40 Recoil Reduction 2 Item Schematics ----------------- None Robot Schematics ------------------ None Fabricated ------------ Nothing Alien Tech Used ----------------- None Achievements -------------- None Challenges ------------ None Game ------ Seed TiamatPhasingFlail Manual? 0 Play Time 00:13:09 Cumulative 546.0 hours Start 2020.05.30 @ 21:09:08 End 2020.05.30 @ 21:21:25 Sessions 1 Manual Loads 0 Difficulty Rogue Special Mode None Game No. 874 Rogue 874 Adventurer 0 Explorer 0 Win Type - Total 50 Types 32/1/6/8/3/0/0 Lore% 94 Gallery% 94 Achievement% 82 Wizard Run 0 Options --------- ASCII 1 Keyboard 0 Movement Numpad Keybinds 0 Fullscreen 0 Font 14/SmallcapsGlow Map View 76x50 Tactical HUD 1 Map Filters NONE Filters NONE Steam 1 RUN: b4c373e8-0486-4f32-8483-56bd07ace9e2